Workbook

Sheet Sheet1
A4: INSTRUCTIONS: Use this form when a single information collection document involves multiple reporting and recordkeeping requirements. The totals of the figures in cols. (D), (F), (H), (I), & (K) should be entered in items 17 & 18 of OMB 83-1. For cols. (E), (F), & (J), the averages of the totals shall be computed, as follows, and then entered on the OMB 83-1. (F) Total/Total = (E) Average (H) Total/(F) Total = (G) Average (K) Total/(I) Total = (J) Average NOTE: The columns will calculate automatically. If Col. E's response is something other than annually, i.e., 1/6 years, list as "1/6" & decimal will display. | I4: TITLE OF INFORMATION COLLECTION DOCUMENT | N4: OMB NO.
I6: Tart Cherries Grown in the States of Michigan, New York, Pennsylvania, Oregon, Utah, Washington, and Wisconsin, Marketing Order No. 930 | N6: 0581-0177
N9: DATE PREPARED
N11: 2013-06-01
A13: IDENTIFICATION OF REPORTING OR RECORDKEEPING REQUIREMENT | H13: ANNUAL BURDEN
H15: REPORTS | M15: RECORDS
O17: TOTAL
G18: FORMS NO (S) | H18: NO. OF | I18: NO OF | J18: TOTAL ANNUAL | K18: HOURS | L18: TOTAL | M18: NO. OF | N18: ANNUAL | O18: RECORD-
A19: SECTION OF | B19: DESCRIPTION | G19: (If "none" | H19: RESPONDENTS | I19: RESPONSES | J19: RESPONSES | K19: PER | L19: HOURS | M19: RECORD- | N19: HOURS PER | O19: KEEPING HOURS
A20: REGS. | G20: so state) | I20: PER | J20: (Col. D x E) | K20: RESPONSE | L20: (Col. F x G) | M20: KEEPERS | N20: RECORD- | O20: (Col. I x J)
I21: RESPONDENT | N21: KEEPER
A22: (A) | B22: (B) | G22: (C) | H22: (D) | I22: (E) | J22: (F) | K22: (G) | L22: (H) | M22: (I) | N22: (J) | O22: (K)
A23: 900.14 930.83 | B23: Producers Referendum Ballot (Amendment and Termination) | G23: FV-43 | H23: 600 | I23: 0.1667 | J23: =SUM(H23*I23) -> 100.00 | K23: 0.3300 | L23: =SUM(J23*K23) -> 33.00 | O23: =SUM(M23*N23) -> 0.00
A24: 900.14 930.83 | B24: Cooperative Association of Producers Referendum Ballot (Amendment and Termination) | G24: FV-43A | H24: 10 | I24: 0.1667 | J24: =SUM(H24*I24) -> 1.67 | K24: 0.3300 | L24: =SUM(J24*K24) -> 0.55 | O24: =SUM(M24*N24) -> 0.00
A25: 900.14 930.83 | B25: Processor's Referendum Ballot (Amendment and Termination) | G25: FV-44 | H25: 40 | I25: 0.1667 | J25: 6.67 | K25: 0.3300 | L25: 2.20 | O25: 0.00
A26: 900.14 | B26: Marketing Agreement | G26: FV-45 | H26: 40 | I26: 0.1667 | J26: 6.67 | K26: 0.1300 | L26: 0.87 | O26: 0.00
A27: 900.14 | B27: Certificate of Resolution | G27: FV-45A | H27: 40 | I27: 0.1667 | J27: 6.67 | K27: 0.0830 | L27: 0.55 | O27: 0.00
A28: 930.26 | B28: Background/Acceptance Statement (Producer and Handler Member/Alternate) | G28: FV-46 | H28: 34 | I28: 0.3333 | J28: 11.33 | K28: 0.0830 | L28: 0.94 | O28: 0.00
A29: 930.26 | B29: Background/Acceptance Statement (Public Member/Alternate) | G29: FV-47 | H29: 2 | I29: 0.3333 | J29: 0.67 | K29: 0.0830 | L29: 0.06 | O29: 0.00
A30: 930.23 | B30: Nomination Petition Forms | G30: FV-48 | H30: 640 | I30: 0.3333 | J30: 213.33 | K30: 0.3300 | L30: 70.40 | O30: 0.00
B31: SUBTOTAL | J31: =SUM(J23:J30) -> 347.00 | L31: =SUM(L23:L30) -> 109 | M31: =SUM(M23:M30) -> 0.00 | O31: =SUM(O23:O30) -> 0.00
B32: TOTAL OF ALL PAGES | J32: =SUM(J31+J62+J90) -> 3,230.33 | L32: =SUM(L31+L62+L90) -> 727.46 | M32: =SUM(M31+M62+M90) -> 0.00 | O32: =SUM(O31+O62+O90) -> 0.00
A33: TOTAL - COLUMNS "F" AND "I" = OMB 831, 13 b; COLUMNS "H" AND "K" = OMB 831, 13c | J33: =SUM(J32+M32) -> 3,230.33 | L33: =SUM(L32+O32) -> 727
A37: INSTRUCTIONS: Use this form when a single information collection document involves multiple reporting and recordkeeping requirements. The totals of the figures in cols. (D), (F), (H), (I), & (K) should be entered in items 17 & 18 of OMB 83-1. For cols. (E), (F), & (J), the averages of the totals shall be computed, as follows, and then entered on the OMB 83-1. (F) Total/Total = (E) Average (H) Total/(F) Total = (G) Average (K) Total/(I) Total = (J) Average NOTE: The columns will calculate automatically. If Col. E's response is something other than annually, i.e., 1/6 years, list as "1/6" & decimal will display. | I37: TITLE OF INFORMATION COLLECTION DOCUMENT | N37: OMB NO.
I39: Tart Cherries Grown in the States of Michigan, New York, Pennsylvania, Oregon, Utah, Washington, and Wisconsin, Marketing Order No. 930 | N39: 0581-0177
N42: DATE PREPARED
N44: 2013-06-01
A46: IDENTIFICATION OF REPORTING OR RECORDKEEPING REQUIREMENT | H46: ANNUAL BURDEN
H48: REPORTS | M48: RECORDS
O50: TOTAL
G51: FORMS NO (S) | H51: NO. OF | I51: NO OF | J51: TOTAL ANNUAL | K51: HOURS | L51: TOTAL | M51: NO. OF | N51: ANNUAL | O51: RECORD-
A52: SECTION OF | B52: DESCRIPTION | G52: (If "none" | H52: RESPONDENTS | I52: RESPONSES | J52: RESPONSES | K52: PER | L52: HOURS | M52: RECORD- | N52: HOURS PER | O52: KEEPING HOURS
A53: REGS. | G53: so state) | I53: PER | J53: (Col. D x E) | K53: RESPONSE | L53: (Col. F x G) | M53: KEEPERS | N53: RECORD- | O53: (Col. I x J)
I54: RESPONDENT | N54: KEEPER
A55: (A) | B55: (B) | G55: (C) | H55: (D) | I55: (E) | J55: (F) | K55: (G) | L55: (H) | M55: (I) | N55: (J) | O55: (K)
A56: 930.23 | B56: Nomination Ballot | G56: FV-49 | H56: 640 | I56: 0.3333 | J56: =SUM(H56*I56) -> 213.33 | K56: 0.1670 | L56: =SUM(J56*K56) -> 35.63 | O56: =SUM(M56*N56) -> 0.00
A57: 930.70(a) | B57: Sales/Inventory Report | G57: CIAB 3 | H57: 40 | I57: 4.0000 | J57: 160.00 | K57: 0.4160 | L57: 66.56 | O57: 0.00
A58: 930.70(a) | B58: Inventory Reserve Summary | G58: CIAB 5A | H58: 40 | I58: 14.0000 | J58: 560.00 | K58: 0.2500 | L58: 140.00 | O58: 0.00
A59: 930.70(a) | B59: Cherries Acquired from Producers | G59: CIAB 2 | H59: 40 | I59: 1.0000 | J59: 40.00 | K59: 0.2500 | L59: 10.00 | O59: 0.00
A60: 930.70(a) | B60: Weekly Raw Product Report | G60: CIAB 1 | H60: 40 | I60: 14.0000 | J60: 560.00 | K60: 0.2500 | L60: 140.00 | O60: 0.00
A61: 930.70(a) | B61: Handler Reserve Plan and Final Pack Report | G61: CIAB 4 | H61: 40 | I61: 1.0000 | J61: 40.00 | K61: 0.2500 | L61: 10.00 | O61: 0.00
B62: SUBTOTAL | J62: =SUM(J56:J61) -> 1,573.33 | L62: =SUM(L56:L61) -> 402 | M62: =SUM(M56:M61) -> 0 | O62: =SUM(O56:O61) -> 0
A66: INSTRUCTIONS: Use this form when a single information collection document involves multiple reporting and recordkeeping requirements. The totals of the figures in cols. (D), (F), (H), (I), & (K) should be entered in items 17 & 18 of OMB 83-1. For cols. (E), (F), & (J), the averages of the totals shall be computed, as follows, and then entered on the OMB 83-1. (F) Total/Total = (E) Average (H) Total/(F) Total = (G) Average (K) Total/(I) Total = (J) Average NOTE: The columns will calculate automatically. If Col. E's response is something other than annually, i.e., 1/6 years, list as "1/6" & decimal will display. | I66: TITLE OF INFORMATION COLLECTION DOCUMENT | N66: OMB NO.
I68: Tart Cherries Grown in the States of Michigan, New York, Pennsylvania, Oregon, Utah, Washington, and Wisconsin, Marketing Order No. 930 | N68: 0581-0177
N71: DATE PREPARED
N73: 2013-06-01
A75: IDENTIFICATION OF REPORTING OR RECORDKEEPING REQUIREMENT | H75: ANNUAL BURDEN
H77: REPORTS | M77: RECORDS
O79: TOTAL
G80: FORMS NO (S) | H80: NO. OF | I80: NO OF | J80: TOTAL ANNUAL | K80: HOURS | L80: TOTAL | M80: NO. OF | N80: ANNUAL | O80: RECORD-
A81: SECTION OF | B81: DESCRIPTION | G81: (If "none" | H81: RESPONDENTS | I81: RESPONSES | J81: RESPONSES | K81: PER | L81: HOURS | M81: RECORD- | N81: HOURS PER | O81: KEEPING HOURS
A82: REGS. | G82: so state) | I82: PER | J82: (Col. D x E) | K82: RESPONSE | L82: (Col. F x G) | M82: KEEPERS | N82: RECORD- | O82: (Col. I x J)
I83: RESPONDENT | N83: KEEPER
A84: (A) | B84: (B) | G84: (C) | H84: (D) | I84: (E) | J84: (F) | K84: (G) | L84: (H) | M84: (I) | N84: (J) | O84: (K)
A85: 930.70(b) | B85: Inventory Location Report | G85: CIAB 5B | H85: 40 | I85: 15.0000 | J85: =SUM(H85*I85) -> 600.00 | K85: 0.1660 | L85: =SUM(J85*K85) -> 99.60 | O85: =SUM(M85*N85) -> 0.00
A86: 930.58(c) | B86: Tart Cherry Orchard Map and Grower Diversion Application | G86: No form number | H86: 600 | I86: 1.0000 | J86: =SUM(H86*I86) -> 600.00 | K86: 0.1660 | L86: =SUM(J86*K86) -> 99.60 | O86: =SUM(M86*N86) -> 0.00
A87: 930.70(b) | B87: Producer List for Referendum | G87: None | H87: 40 | I87: 1.0000 | J87: =SUM(H87*I87) -> 40.00 | K87: 0.3300 | L87: =SUM(J87*K87) -> 13.20 | O87: =SUM(M87*N87) -> 0.00
A88: 930.70(b) | B88: Report of Export Sales Activity | G88: CIAB 3A | H88: 40 | I88: 1.0000 | J88: =SUM(H88*I88) -> 40.00 | K88: 0.0830 | L88: =SUM(J88*K88) -> 3.32 | O88: =SUM(M88*N88) -> 0.00
A89: 930.70(b) | B89: Memorandum of Agreement between Handlers Regarding Responsibilities for Tart Cherry Production under the Marketing Order for Red Tart Cherries | G89: No form number | H89: 10 | I89: 3.0000 | J89: =SUM(H89*I89) -> 30.00 | K89: 0.0330 | L89: =SUM(J89*K89) -> 0.99 | O89: =SUM(M89*N89) -> 0.00
B90: SUBTOTAL | J90: =SUM(J85:J89) -> 1,310.00 | L90: =SUM(L85:L89) -> 216.71 | M90: =SUM(M85:M89) -> 0 | O90: =SUM(O85:O89) -> 0.00
